[Event "*** Titled Tuesday Blitz"]
[Site "Chess.com"]
[Date "2021.02.09"]
[Round "4"]
[White "A-S-00"]
[Black "zim0ne"]
[Result "1/2-1/2"]
[WhiteElo "2322"]
[BlackElo "2518"]
[TimeControl "180+1"]
[EndTime "10:41:00 PST"]
[Termination "Game drawn by stalemate"]

1. d4 {[%clk 0:03:00.9]} 1... d5 {[%clk 0:02:58.3]} 2. Nf3 {[%clk 0:03:00.3]}
2... c6 {[%clk 0:02:58.4]} 3. c4 {[%clk 0:02:59.3]} 3... Nf6 {[%clk 0:02:58.2]}
4. Nc3 {[%clk 0:02:58.6]} 4... e6 {[%clk 0:02:57.1]} 5. g3 {[%clk 0:02:52.2]}
5... g6 {[%clk 0:02:55]} 6. Bg2 {[%clk 0:02:52.1]} 6... Bg7 {[%clk 0:02:55.7]}
7. O-O {[%clk 0:02:52.3]} 7... O-O {[%clk 0:02:56.4]} 8. Ne5 {[%clk 0:02:48.6]}
8... Nbd7 {[%clk 0:02:55.7]} 9. Bf4 {[%clk 0:02:48.5]} 9... Nh5 {[%clk 0:02:53]}
10. e4 {[%clk 0:02:41.7]} 10... Nxf4 {[%clk 0:02:50.9]} 11. gxf4 {[%clk
0:02:41.8]} 11... Nxe5 {[%clk 0:02:51.1]} 12. fxe5 {[%clk 0:02:39.9]} 12... dxc4
{[%clk 0:02:51.8]} 13. f4 {[%clk 0:02:18.4]} 13... b5 {[%clk 0:02:50.4]} 14. Qd2
{[%clk 0:02:09.8]} 14... Qb6 {[%clk 0:02:50.1]} 15. Qf2 {[%clk 0:02:05.4]} 15...
b4 {[%clk 0:02:48.7]} 16. Na4 {[%clk 0:02:04.1]} 16... Qb5 {[%clk 0:02:46.5]}
17. Nc5 {[%clk 0:02:04.4]} 17... a5 {[%clk 0:02:44.1]} 18. Rfc1 {[%clk
0:02:03.7]} 18... Rd8 {[%clk 0:02:41.4]} 19. Bf1 {[%clk 0:02:03.4]} 19... Ra7
{[%clk 0:02:38.4]} 20. Bxc4 {[%clk 0:02:03.1]} 20... Qb6 {[%clk 0:02:38.9]} 21.
a3 {[%clk 0:01:44.1]} 21... Bf8 {[%clk 0:02:36.2]} 22. Bf1 {[%clk 0:01:32.8]}
22... Be7 {[%clk 0:02:30.8]} 23. axb4 {[%clk 0:01:22.3]} 23... axb4 {[%clk
0:02:29.3]} 24. Rxa7 {[%clk 0:01:22.8]} 24... Qxa7 {[%clk 0:02:30.2]} 25. Nb3
{[%clk 0:01:22.5]} 25... Qb6 {[%clk 0:02:27.8]} 26. Qc2 {[%clk 0:01:18.7]} 26...
Bb7 {[%clk 0:02:26.5]} 27. Kh1 {[%clk 0:01:15.6]} 27... Ra8 {[%clk 0:02:21.2]}
28. Bg2 {[%clk 0:01:13.9]} 28... Kg7 {[%clk 0:02:17.5]} 29. Nc5 {[%clk
0:01:13.2]} 29... Bxc5 {[%clk 0:02:09.2]} 30. dxc5 {[%clk 0:01:13.1]} 30... Qa5
{[%clk 0:02:04.9]} 31. f5 {[%clk 0:01:09]} 31... Qd8 {[%clk 0:01:56.1]} 32. f6+
{[%clk 0:01:08.4]} 32... Kg8 {[%clk 0:01:56.1]} 33. Rd1 {[%clk 0:01:07.6]} 33...
Qf8 {[%clk 0:01:54.1]} 34. Qd2 {[%clk 0:01:02.6]} 34... Qxc5 {[%clk 0:01:50.8]}
35. Qd6 {[%clk 0:00:51.4]} 35... Qxd6 {[%clk 0:01:47.3]} 36. exd6 {[%clk
0:00:51.7]} 36... e5 {[%clk 0:01:47.3]} 37. Kg1 {[%clk 0:00:32.6]} 37... Kf8
{[%clk 0:01:45.2]} 38. d7 {[%clk 0:00:25.8]} 38... Rd8 {[%clk 0:01:45.2]} 39.
Kf2 {[%clk 0:00:24.2]} 39... c5 {[%clk 0:01:45]} 40. Ke3 {[%clk 0:00:23.1]}
40... Bc6 {[%clk 0:01:41.5]} 41. Bh3 {[%clk 0:00:23.1]} 41... c4 {[%clk
0:01:41.9]} 42. Rd6 {[%clk 0:00:22.5]} 42... Bb5 {[%clk 0:01:41.2]} 43. Rb6
{[%clk 0:00:19.6]} 43... Bxd7 {[%clk 0:01:41.3]} 44. Bxd7 {[%clk 0:00:19.2]}
44... c3 {[%clk 0:01:39.4]} 45. bxc3 {[%clk 0:00:19.3]} 45... bxc3 {[%clk
0:01:40.3]} 46. Ba4 {[%clk 0:00:18.7]} 46... h5 {[%clk 0:01:37.5]} 47. Rc6
{[%clk 0:00:16.7]} 47... Kg8 {[%clk 0:01:37.2]} 48. Rxc3 {[%clk 0:00:16.7]}
48... Rd6 {[%clk 0:01:37.3]} 49. Rc8+ {[%clk 0:00:16.2]} 49... Kh7 {[%clk
0:01:37.1]} 50. Rc6 {[%clk 0:00:15.2]} 50... Rd7 {[%clk 0:01:33.8]} 51. Bb3
{[%clk 0:00:11.4]} 51... g5 {[%clk 0:01:32.7]} 52. Bd5 {[%clk 0:00:11.1]} 52...
Kg6 {[%clk 0:01:32.7]} 53. Kf3 {[%clk 0:00:09.9]} 53... Ra7 {[%clk 0:01:31.6]}
54. Rb6 {[%clk 0:00:08.6]} 54... Ra1 {[%clk 0:01:29.3]} 55. Rb7 {[%clk
0:00:07.5]} 55... Rf1+ {[%clk 0:01:29.2]} 56. Ke2 {[%clk 0:00:07]} 56... Rxf6
{[%clk 0:01:29.6]} 57. Rb8 {[%clk 0:00:07.5]} 57... g4 {[%clk 0:01:29.1]} 58.
Rg8+ {[%clk 0:00:07.2]} 58... Kh6 {[%clk 0:01:29.3]} 59. Rd8 {[%clk 0:00:06.9]}
59... Kg5 {[%clk 0:01:27.6]} 60. Rg8+ {[%clk 0:00:04.4]} 60... Kh4 {[%clk
0:01:26.9]} 61. Rg7 {[%clk 0:00:04.5]} 61... Kh3 {[%clk 0:01:26]} 62. Bxf7
{[%clk 0:00:03.2]} 62... h4 {[%clk 0:01:24.6]} 63. Bh5 {[%clk 0:00:02.5]} 63...
Rf4 {[%clk 0:01:24.6]} 64. Ke3 {[%clk 0:00:02]} 64... g3 {[%clk 0:01:24.6]} 65.
hxg3 {[%clk 0:00:01.3]} 65... hxg3 {[%clk 0:01:24.8]} 66. Bf3 {[%clk 0:00:02]}
66... Rh4 {[%clk 0:01:21.2]} 67. Rg6 {[%clk 0:00:01.8]} 67... Kh2 {[%clk
0:01:21]} 68. Rg7 {[%clk 0:00:02]} 68... Rh3 {[%clk 0:01:21]} 69. Rg8 {[%clk
0:00:02.3]} 69... Kg1 {[%clk 0:01:19.9]} 70. Ke2 {[%clk 0:00:01.6]} 70... Rh2+
{[%clk 0:01:18.5]} 71. Ke3 {[%clk 0:00:01.8]} 71... g2 {[%clk 0:01:18.7]} 72.
Rg3 {[%clk 0:00:01.7]} 72... Kf1 {[%clk 0:01:18.4]} 73. Bxg2+ {[%clk 0:00:01.9]}
73... Rxg2 {[%clk 0:01:18.5]} 74. Rxg2 {[%clk 0:00:02.4]} 74... Kxg2 {[%clk
0:01:19.4]} 75. Ke2 {[%clk 0:00:02.7]} 75... Kg3 {[%clk 0:01:19.6]} 76. Ke3
{[%clk 0:00:02.3]} 76... Kg4 {[%clk 0:01:19.8]} 77. Kd3 {[%clk 0:00:02.6]} 77...
Kf4 {[%clk 0:01:20]} 78. Kd2 {[%clk 0:00:02.9]} 78... Kf3 {[%clk 0:01:20.1]} 79.
Kd3 {[%clk 0:00:02.9]} 79... Kf2 {[%clk 0:01:19.6]} 80. Kd2 {[%clk 0:00:03.2]}
80... Kg3 {[%clk 0:01:19.6]} 81. Kd3 {[%clk 0:00:03.8]} 81... Kf4 {[%clk
0:01:19.8]} 82. Kd2 {[%clk 0:00:04.1]} 82... Kxe4 {[%clk 0:01:20.7]} 83. Ke2
{[%clk 0:00:04.6]} 83... Kf4 {[%clk 0:01:21.1]} 84. Kf2 {[%clk 0:00:04.8]} 84...
e4 {[%clk 0:01:21.7]} 85. Ke2 {[%clk 0:00:05.1]} 85... e3 {[%clk 0:01:21.9]} 86.
Ke1 {[%clk 0:00:05.7]} 86... Kf3 {[%clk 0:01:22.2]} 87. Kf1 {[%clk 0:00:06]}
87... e2+ {[%clk 0:01:22.6]} 88. Ke1 {[%clk 0:00:06.6]} 88... Ke3 {[%clk
0:01:23.5]} 1/2-1/2

[Event "*** Titled Tuesday Blitz"]
[Site "Chess.com"]
[Date "2021.02.09"]
[Round "4"]
[White "sergoy"]
[Black "Jungle_Jaguar"]
[Result "0-1"]
[WhiteElo "2854"]
[BlackElo "2653"]
[TimeControl "180+1"]
[EndTime "10:41:03 PST"]
[Termination "Jungle_Jaguar won by resignation"]

1. d4 {[%clk 0:03:00.9]} 1... Nf6 {[%clk 0:02:54]} 2. c4 {[%clk 0:03:00.9]} 2...
g6 {[%clk 0:02:51.4]} 3. Nf3 {[%clk 0:03:00.5]} 3... Bg7 {[%clk 0:02:51]} 4. g3
{[%clk 0:03:01.2]} 4... O-O {[%clk 0:02:51.3]} 5. Bg2 {[%clk 0:03:01.8]} 5... d6
{[%clk 0:02:52]} 6. O-O {[%clk 0:03:02.1]} 6... Nc6 {[%clk 0:02:52.7]} 7. Nc3
{[%clk 0:03:02.6]} 7... e5 {[%clk 0:02:52.9]} 8. dxe5 {[%clk 0:02:48.2]} 8...
dxe5 {[%clk 0:02:53.8]} 9. Qxd8 {[%clk 0:02:48.2]} 9... Rxd8 {[%clk 0:02:52.3]}
10. Bg5 {[%clk 0:02:48.6]} 10... Be6 {[%clk 0:02:46.6]} 11. Nd2 {[%clk
0:02:48.3]} 11... h6 {[%clk 0:02:39.3]} 12. Bxf6 {[%clk 0:02:48.1]} 12... Bxf6
{[%clk 0:02:39.4]} 13. Nd5 {[%clk 0:02:48.8]} 13... Bxd5 {[%clk 0:02:23]} 14.
cxd5 {[%clk 0:02:48.1]} 14... Nd4 {[%clk 0:02:18.1]} 15. e3 {[%clk 0:02:46.4]}
15... Nf5 {[%clk 0:02:14.9]} 16. Rac1 {[%clk 0:02:44.2]} 16... Rac8 {[%clk
0:02:10.2]} 17. Nc4 {[%clk 0:02:43.3]} 17... Nd6 {[%clk 0:01:54.9]} 18. Bh3
{[%clk 0:02:41.8]} 18... Rb8 {[%clk 0:01:37.9]} 19. Nxd6 {[%clk 0:02:30.4]}
19... Rxd6 {[%clk 0:01:35.9]} 20. e4 {[%clk 0:02:17.6]} 20... c6 {[%clk
0:01:36]} 21. dxc6 {[%clk 0:02:17.6]} 21... bxc6 {[%clk 0:01:36]} 22. Rc2 {[%clk
0:02:14.6]} 22... Kg7 {[%clk 0:01:31.2]} 23. b3 {[%clk 0:02:10]} 23... Rb4
{[%clk 0:01:29.8]} 24. Bg2 {[%clk 0:02:05]} 24... Bd8 {[%clk 0:01:07.3]} 25. Re1
{[%clk 0:01:07.3]} 25... Bb6 {[%clk 0:01:06.9]} 26. Ree2 {[%clk 0:01:06.1]}
26... a5 {[%clk 0:00:49.7]} 27. Red2 {[%clk 0:00:47.6]} 27... Rxd2 {[%clk
0:00:47.6]} 28. Rxd2 {[%clk 0:00:48.5]} 28... a4 {[%clk 0:00:48.3]} 29. bxa4
{[%clk 0:00:49.1]} 29... Rxa4 {[%clk 0:00:48.6]} 30. Rc2 {[%clk 0:00:48.8]}
30... Bd4 {[%clk 0:00:48.9]} 31. Bf1 {[%clk 0:00:48.2]} 31... c5 {[%clk
0:00:49.2]} 32. Bc4 {[%clk 0:00:47.8]} 32... f5 {[%clk 0:00:46.7]} 33. Bb3
{[%clk 0:00:40.5]} 33... Ra7 {[%clk 0:00:42.7]} 34. exf5 {[%clk 0:00:29.3]}
34... gxf5 {[%clk 0:00:43.6]} 35. Kg2 {[%clk 0:00:27.2]} 35... e4 {[%clk
0:00:43.2]} 36. a4 {[%clk 0:00:26.2]} 36... Kf6 {[%clk 0:00:37.3]} 37. Ra2
{[%clk 0:00:25.4]} 37... Ra5 {[%clk 0:00:34.3]} 38. Bc4 {[%clk 0:00:23.8]} 38...
Ke5 {[%clk 0:00:32.9]} 39. Bb5 {[%clk 0:00:24.1]} 39... Bc3 {[%clk 0:00:33.3]}
40. Rc2 {[%clk 0:00:21.3]} 40... Bb4 {[%clk 0:00:33.1]} 41. Rc1 {[%clk
0:00:20.4]} 41... f4 {[%clk 0:00:18.5]} 42. gxf4+ {[%clk 0:00:18.2]} 42... Kxf4
{[%clk 0:00:19.4]} 43. Rd1 {[%clk 0:00:18.7]} 43... Ra7 {[%clk 0:00:19.8]} 44.
Rd6 {[%clk 0:00:18.3]} 44... Rg7+ {[%clk 0:00:20.1]} 45. Kf1 {[%clk 0:00:18.7]}
45... h5 {[%clk 0:00:18]} 46. Rf6+ {[%clk 0:00:18.4]} 46... Ke5 {[%clk
0:00:18.2]} 47. Rh6 {[%clk 0:00:18.2]} 47... Rg5 {[%clk 0:00:15.9]} 48. h4
{[%clk 0:00:18.1]} 48... Rf5 {[%clk 0:00:15.8]} 49. Ke2 {[%clk 0:00:15.8]} 49...
Kd4 {[%clk 0:00:15.2]} 50. Rd6+ {[%clk 0:00:10.4]} 50... Kc3 {[%clk 0:00:15.3]}
51. Be8 {[%clk 0:00:08.3]} 51... c4 {[%clk 0:00:11.9]} 52. Re6 {[%clk
0:00:07.2]} 52... Bc5 {[%clk 0:00:11.3]} 53. Rxe4 {[%clk 0:00:05.1]} 53... Rxf2+
{[%clk 0:00:11.9]} 54. Ke1 {[%clk 0:00:05.6]} 54... Rb2 {[%clk 0:00:11.1]} 55.
Bf7 {[%clk 0:00:05.1]} 55... Rb4 {[%clk 0:00:10.5]} 56. Bxh5 {[%clk 0:00:04.7]}
56... Kd3 {[%clk 0:00:10.3]} 57. Rf4 {[%clk 0:00:01.1]} 57... Rb1+ {[%clk
0:00:10.6]} 58. Bd1 {[%clk 0:00:02]} 58... Bb4+ {[%clk 0:00:11.2]} 59. Kf2
{[%clk 0:00:02.5]} 59... Rxd1 {[%clk 0:00:11.8]} 60. h5 {[%clk 0:00:02.6]} 60...
Rd2+ {[%clk 0:00:10.4]} 61. Kg3 {[%clk 0:00:02.8]} 61... Ra2 {[%clk 0:00:10.9]}
62. Rh4 {[%clk 0:00:02.1]} 62... Rxa4 {[%clk 0:00:10.7]} 63. h6 {[%clk
0:00:02.4]} 63... Ra8 {[%clk 0:00:10.8]} 64. h7 {[%clk 0:00:02.7]} 64... Rh8
{[%clk 0:00:11.1]} 65. Kf2 {[%clk 0:00:02.4]} 65... Bc5+ {[%clk 0:00:10.1]} 66.
Ke1 {[%clk 0:00:02.5]} 66... c3 {[%clk 0:00:10.2]} 67. Kd1 {[%clk 0:00:02.9]}
67... c2+ {[%clk 0:00:09.9]} 0-1

[Event "*** Titled Tuesday Blitz"]
[Site "Chess.com"]
[Date "2021.02.09"]
[Round "4"]
[White "NikolasTheiss"]
[Black "Stormeman100100"]
[Result "1/2-1/2"]
[WhiteElo "2328"]
[BlackElo "2537"]
[TimeControl "180+1"]
[EndTime "10:41:03 PST"]
[Termination "Game drawn by agreement"]

1. h4 {[%clk 0:03:00.9]} 1... e5 {[%clk 0:02:49.4]} 2. h5 {[%clk 0:03:00.6]}
2... d5 {[%clk 0:02:49.2]} 3. h6 {[%clk 0:03:00.2]} 3... Nxh6 {[%clk 0:02:44.2]}
4. d4 {[%clk 0:02:59.9]} 4... Nc6 {[%clk 0:02:33.4]} 5. Bxh6 {[%clk 0:02:57.9]}
5... gxh6 {[%clk 0:02:33.5]} 6. dxe5 {[%clk 0:02:57.3]} 6... Nxe5 {[%clk
0:02:33.8]} 7. e3 {[%clk 0:02:52.6]} 7... Bg7 {[%clk 0:02:19.5]} 8. Nc3 {[%clk
0:02:51.9]} 8... Be6 {[%clk 0:02:18.2]} 9. Nge2 {[%clk 0:02:50.8]} 9... Qd7
{[%clk 0:02:12.4]} 10. Nf4 {[%clk 0:02:48.6]} 10... O-O-O {[%clk 0:02:11]} 11.
Nh5 {[%clk 0:02:40.9]} 11... Bf8 {[%clk 0:02:10.8]} 12. Qd4 {[%clk 0:02:38]}
12... Bd6 {[%clk 0:01:32.6]} 13. Qxa7 {[%clk 0:02:36.9]} 13... c6 {[%clk
0:01:32.9]} 14. a4 {[%clk 0:02:01.4]} 14... Bb4 {[%clk 0:01:27.9]} 15. a5 {[%clk
0:01:49.4]} 15... d4 {[%clk 0:01:16.7]} 16. exd4 {[%clk 0:01:02]} 16... Qxd4
{[%clk 0:01:10.8]} 17. Qxd4 {[%clk 0:00:53.9]} 17... Rxd4 {[%clk 0:01:11.7]} 18.
Be2 {[%clk 0:00:48.4]} 18... Nc4 {[%clk 0:00:55.6]} 19. O-O {[%clk 0:00:26.4]}
19... Nxb2 {[%clk 0:00:51.2]} 20. Na4 {[%clk 0:00:23]} 20... Nxa4 {[%clk
0:00:50.3]} 21. Rxa4 {[%clk 0:00:23.4]} 21... Bc5 {[%clk 0:00:50.8]} 22. Rxd4
{[%clk 0:00:21.4]} 22... Bxd4 {[%clk 0:00:51.7]} 23. a6 {[%clk 0:00:21.6]} 23...
bxa6 {[%clk 0:00:45.7]} 24. Bxa6+ {[%clk 0:00:22.5]} 24... Kc7 {[%clk
0:00:45.5]} 25. Nf4 {[%clk 0:00:21.1]} 25... Bg4 {[%clk 0:00:24]} 26. Bd3 {[%clk
0:00:18.8]} 26... Be5 {[%clk 0:00:16.2]} 27. Ne2 {[%clk 0:00:17.8]} 27... h5
{[%clk 0:00:15.8]} 28. f3 {[%clk 0:00:16.8]} 28... Be6 {[%clk 0:00:15.7]} 29.
Kf2 {[%clk 0:00:16.1]} 29... h4 {[%clk 0:00:16.1]} 30. f4 {[%clk 0:00:15.9]}
30... Bd6 {[%clk 0:00:15.9]} 31. Rh1 {[%clk 0:00:15.7]} 31... Be7 {[%clk
0:00:15.9]} 32. Kf3 {[%clk 0:00:15.6]} 32... Bd5+ {[%clk 0:00:15.9]} 33. Be4
{[%clk 0:00:16]} 33... Be6 {[%clk 0:00:16.4]} 34. Nd4 {[%clk 0:00:15.4]} 34...
Bd7 {[%clk 0:00:16.3]} 35. Bf5 {[%clk 0:00:13.2]} 35... c5 {[%clk 0:00:14.6]}
36. Bxd7 {[%clk 0:00:13.2]} 36... cxd4 {[%clk 0:00:10.3]} 37. Bf5 {[%clk
0:00:14.1]} 37... h6 {[%clk 0:00:09.8]} 38. Bd3 {[%clk 0:00:14.1]} 38... Rd8
{[%clk 0:00:09.2]} 39. Re1 {[%clk 0:00:13.8]} 39... Bf6 {[%clk 0:00:09.2]} 40.
Re4 {[%clk 0:00:13.5]} 40... Rd7 {[%clk 0:00:08.9]} 41. Re1 {[%clk 0:00:13.1]}
41... Kb6 {[%clk 0:00:09.3]} 42. Rb1+ {[%clk 0:00:13.5]} 42... Kc5 {[%clk
0:00:09.4]} 43. Rb5+ {[%clk 0:00:14.1]} 43... Kc6 {[%clk 0:00:09.5]} 44. Rf5
{[%clk 0:00:14.6]} 44... Rd6 {[%clk 0:00:09.2]} 45. Bb5+ {[%clk 0:00:14.2]}
45... Kc7 {[%clk 0:00:09.7]} 46. Bd3 {[%clk 0:00:14.6]} 46... Re6 {[%clk
0:00:09.7]} 47. Rh5 {[%clk 0:00:14.2]} 47... Re3+ {[%clk 0:00:09.5]} 48. Kf2
{[%clk 0:00:14.7]} 48... Bg7 {[%clk 0:00:08.2]} 49. Rxh4 {[%clk 0:00:14.1]}
49... Kd6 {[%clk 0:00:07.6]} 50. Rh5 {[%clk 0:00:14.6]} 50... Re8 {[%clk
0:00:05.2]} 51. g4 {[%clk 0:00:13.5]} 51... Re7 {[%clk 0:00:05.5]} 52. Rf5
{[%clk 0:00:12.8]} 52... Bh8 {[%clk 0:00:05.2]} 53. Bc4 {[%clk 0:00:13.2]} 53...
Rc7 {[%clk 0:00:03.3]} 54. Bb3 {[%clk 0:00:12.7]} 54... Bg7 {[%clk 0:00:03.4]}
55. Rxf7 {[%clk 0:00:12]} 55... Rxf7 {[%clk 0:00:04]} 56. Bxf7 {[%clk
0:00:12.8]} 56... Ke7 {[%clk 0:00:04.8]} 57. Bd5 {[%clk 0:00:12.4]} 57... Kd6
{[%clk 0:00:05.1]} 58. Be4 {[%clk 0:00:12.1]} 58... Kc5 {[%clk 0:00:05.1]} 59.
Kf3 {[%clk 0:00:12.5]} 59... Kc4 {[%clk 0:00:06]} 60. Bd3+ {[%clk 0:00:12.9]}
60... Kd5 {[%clk 0:00:06.2]} 61. Be4+ {[%clk 0:00:12.4]} 61... Kd6 {[%clk
0:00:05.7]} 62. Kg3 {[%clk 0:00:12.9]} 62... Ke6 {[%clk 0:00:04.8]} 63. Kh4
{[%clk 0:00:13.1]} 63... Kf6 {[%clk 0:00:04.5]} 64. Kh5 {[%clk 0:00:13.6]} 64...
Bf8 {[%clk 0:00:04.6]} 65. Bd3 {[%clk 0:00:12]} 65... Kg7 {[%clk 0:00:03.6]} 66.
g5 {[%clk 0:00:10.6]} 66... hxg5 {[%clk 0:00:03.8]} 67. fxg5 {[%clk 0:00:11.5]}
67... Bb4 {[%clk 0:00:03.3]} 68. Kg4 {[%clk 0:00:11.9]} 68... Bc3 {[%clk
0:00:03.3]} 69. Kf5 {[%clk 0:00:12.4]} 69... Ba1 {[%clk 0:00:03]} 70. Ke5 {[%clk
0:00:12.8]} 70... Bc3 {[%clk 0:00:03.3]} 71. Kd5 {[%clk 0:00:13.3]} 71... Ba1
{[%clk 0:00:03.9]} 72. Ke4 {[%clk 0:00:13.7]} 72... Bc3 {[%clk 0:00:04.5]} 73.
Kf5 {[%clk 0:00:14.6]} 73... Ba1 {[%clk 0:00:05.1]} 74. Bc4 {[%clk 0:00:15.2]}
74... Bc3 {[%clk 0:00:05.6]} 75. Bb3 {[%clk 0:00:16.1]} 75... Ba1 {[%clk
0:00:06.3]} 76. Kg4 {[%clk 0:00:16.6]} 76... Bc3 {[%clk 0:00:06.9]} 77. Kf4
{[%clk 0:00:16.5]} 77... Ba1 {[%clk 0:00:07.5]} 78. Ke4 {[%clk 0:00:17]} 78...
Bc3 {[%clk 0:00:08.2]} 79. Kd3 {[%clk 0:00:17.5]} 79... Ba1 {[%clk 0:00:08.8]}
80. Be6 {[%clk 0:00:17.8]} 80... Bc3 {[%clk 0:00:09.3]} 81. Bf5 {[%clk
0:00:18.2]} 81... Ba1 {[%clk 0:00:09.5]} 1/2-1/2

[Event "*** Titled Tuesday Blitz"]
[Site "Chess.com"]
[Date "2021.02.09"]
[Round "4"]
[White "RamyresCoelho"]
[Black "Walter_White_Poland"]
[Result "0-1"]
[WhiteElo "2078"]
[BlackElo "2287"]
[TimeControl "180+1"]
[EndTime "10:41:04 PST"]
[Termination "Walter_White_Poland won by checkmate"]

1. e4 {[%clk 0:02:59.2]} 1... e5 {[%clk 0:03:00]} 2. Nf3 {[%clk 0:02:59.1]} 2...
Nc6 {[%clk 0:03:00.2]} 3. d4 {[%clk 0:02:59.1]} 3... exd4 {[%clk 0:02:59.9]} 4.
Bc4 {[%clk 0:02:59.2]} 4... Nf6 {[%clk 0:02:59.5]} 5. e5 {[%clk 0:02:58.8]} 5...
Ne4 {[%clk 0:02:59.6]} 6. Bd5 {[%clk 0:02:56.6]} 6... Nc5 {[%clk 0:02:58.1]} 7.
O-O {[%clk 0:02:54.6]} 7... Be7 {[%clk 0:02:56.9]} 8. c3 {[%clk 0:02:51.6]} 8...
dxc3 {[%clk 0:02:56]} 9. Nxc3 {[%clk 0:02:52.5]} 9... O-O {[%clk 0:02:53.7]} 10.
Ne4 {[%clk 0:02:40.3]} 10... Nxe4 {[%clk 0:02:51.4]} 11. Bxe4 {[%clk 0:02:41.2]}
11... d6 {[%clk 0:02:46.3]} 12. Qc2 {[%clk 0:02:33.3]} 12... Nxe5 {[%clk
0:02:20.4]} 13. Bxh7+ {[%clk 0:02:31.8]} 13... Kh8 {[%clk 0:02:20.3]} 14. Nxe5
{[%clk 0:02:30.3]} 14... dxe5 {[%clk 0:02:19.7]} 15. Bf5 {[%clk 0:02:21.9]}
15... Bd6 {[%clk 0:02:09.7]} 16. Be3 {[%clk 0:02:15.9]} 16... Qf6 {[%clk
0:02:05.8]} 17. Bxc8 {[%clk 0:02:15.5]} 17... Raxc8 {[%clk 0:02:03.3]} 18. Qe4
{[%clk 0:02:05.9]} 18... b6 {[%clk 0:01:59]} 19. a4 {[%clk 0:02:00.2]} 19... a5
{[%clk 0:01:58.5]} 20. Rad1 {[%clk 0:01:56.7]} 20... Kg8 {[%clk 0:01:44.9]} 21.
h4 {[%clk 0:01:32.6]} 21... Qe6 {[%clk 0:01:44.2]} 22. g4 {[%clk 0:01:22.9]}
22... f5 {[%clk 0:01:35.7]} 23. gxf5 {[%clk 0:01:20.1]} 23... Rxf5 {[%clk
0:01:35.6]} 24. Qd5 {[%clk 0:01:20]} 24... Qxd5 {[%clk 0:01:08.5]} 25. Rxd5
{[%clk 0:01:20.9]} 25... Rb8 {[%clk 0:00:55.3]} 26. f4 {[%clk 0:01:17.8]} 26...
Rbf8 {[%clk 0:00:35.8]} 27. Bxb6 {[%clk 0:01:12.3]} 27... Rxf4 {[%clk
0:00:35.8]} 28. Rxf4 {[%clk 0:01:11.3]} 28... Rxf4 {[%clk 0:00:36]} 29. Bxa5
{[%clk 0:01:07.1]} 29... Rg4+ {[%clk 0:00:31.3]} 30. Kf1 {[%clk 0:01:02.3]}
30... Rxa4 {[%clk 0:00:23]} 31. Bc3 {[%clk 0:00:59.2]} 31... Rxh4 {[%clk
0:00:16.3]} 32. Ke2 {[%clk 0:00:56]} 32... e4 {[%clk 0:00:12.5]} 33. Ke3 {[%clk
0:00:54.9]} 33... Kf7 {[%clk 0:00:11.7]} 34. Rf5+ {[%clk 0:00:52.6]} 34... Ke6
{[%clk 0:00:10.1]} 35. Ra5 {[%clk 0:00:46.4]} 35... g6 {[%clk 0:00:08.4]} 36.
Ra4 {[%clk 0:00:40.4]} 36... Kd5 {[%clk 0:00:06.4]} 37. Rd4+ {[%clk 0:00:39.7]}
37... Kc5 {[%clk 0:00:05.6]} 38. Bb4+ {[%clk 0:00:36.8]} 38... Kc6 {[%clk
0:00:05.7]} 39. Bxd6 {[%clk 0:00:37]} 39... cxd6 {[%clk 0:00:05.5]} 40. Rc4+
{[%clk 0:00:37.5]} 40... Kd5 {[%clk 0:00:05.1]} 41. Rd4+ {[%clk 0:00:36.1]}
41... Ke5 {[%clk 0:00:05.3]} 42. Ra4 {[%clk 0:00:33.9]} 42... Rh3+ {[%clk
0:00:04.5]} 43. Kd2 {[%clk 0:00:33.5]} 43... d5 {[%clk 0:00:05.4]} 44. Ra6
{[%clk 0:00:33.1]} 44... Rd3+ {[%clk 0:00:05.9]} 45. Ke2 {[%clk 0:00:32.9]}
45... Rb3 {[%clk 0:00:05.8]} 46. Rxg6 {[%clk 0:00:28.6]} 46... Rxb2+ {[%clk
0:00:05.8]} 47. Kd1 {[%clk 0:00:28.9]} 47... Rb3 {[%clk 0:00:06]} 48. Rg8 {[%clk
0:00:27.5]} 48... d4 {[%clk 0:00:05.8]} 49. Re8+ {[%clk 0:00:27.4]} 49... Kf4
{[%clk 0:00:05.6]} 50. Rf8+ {[%clk 0:00:28.3]} 50... Ke3 {[%clk 0:00:06.2]} 51.
Kc1 {[%clk 0:00:28.6]} 51... Ra3 {[%clk 0:00:06.1]} 52. Kb2 {[%clk 0:00:28.6]}
52... Ra6 {[%clk 0:00:05.9]} 53. Rh8 {[%clk 0:00:27.5]} 53... Rc6 {[%clk
0:00:05.6]} 54. Rh3+ {[%clk 0:00:27.3]} 54... Kd2 {[%clk 0:00:05.9]} 55. Rh2+
{[%clk 0:00:27.4]} 55... Kd3 {[%clk 0:00:06.8]} 56. Rh3+ {[%clk 0:00:27.2]}
56... e3 {[%clk 0:00:07.7]} 57. Rh4 {[%clk 0:00:26]} 57... Rc7 {[%clk
0:00:06.2]} 58. Rh3 {[%clk 0:00:25.1]} 58... Kd2 {[%clk 0:00:05.9]} 59. Rh4
{[%clk 0:00:23.5]} 59... d3 {[%clk 0:00:05.7]} 60. Ka1 {[%clk 0:00:22.6]} 60...
e2 {[%clk 0:00:05.9]} 61. Rh2 {[%clk 0:00:22.5]} 61... Kd1 {[%clk 0:00:05.8]}
62. Rf2 {[%clk 0:00:13.1]} 62... d2 {[%clk 0:00:05.4]} 63. Rf7 {[%clk
0:00:07.6]} 63... Rxf7 {[%clk 0:00:04.7]} 64. Kb1 {[%clk 0:00:07.5]} 64... e1=Q
{[%clk 0:00:04.8]} 65. Kb2 {[%clk 0:00:08.4]} 65... Qe3 {[%clk 0:00:05]} 66. Ka2
{[%clk 0:00:08.4]} 66... Ra7+ {[%clk 0:00:05.1]} 67. Kb2 {[%clk 0:00:09.3]}
67... Rb7+ {[%clk 0:00:05.6]} 68. Ka2 {[%clk 0:00:08.3]} 68... Qb3+ {[%clk
0:00:05.4]} 69. Ka1 {[%clk 0:00:08]} 69... Qb2# {[%clk 0:00:06.3]} 0-1